[Event "Hungarian Youth-ch I 2024"]
[Site "Szolnok"]
[Date "2024.04.05"]
[Round "8.13"]
[White "Baki, Bence"]
[Black "Kovacs, Kristof"]
[Result "0-1"]
[ECO "C91"]
[WhiteElo "1876"]
[BlackElo "2000"]
[Annotator "RC"]
[PlyCount "102"]
[EventDate "2024.03.31"]
[EventType "swiss"]
[EventCountry "HUN"]
[SourceTitle "playchess.com"]
[Source "ChessBase"]
[SourceQuality "1"]
[TimeControl "5400+30"]

1. e4 {[%emt 0:00:03]} e5 {[%emt 0:00:09]} 2. Nf3 {[%emt 0:00:05]} Nc6 {[%emt 0:00:09]} 3. Bb5 {[%emt 0:00:08]} a6 {[%emt 0:00:19]} 4. Ba4 {[%emt 0:00:07]} Nf6 {[%emt 0:00:06]} 5. O-O {[%emt 0:00:13]} Be7 {[%emt 0:00:10]} 6. Re1 {[%emt 0:00:10]} b5 {[%emt 0:00:08]} 7. Bb3 {[%emt 0:00:09]} O-O {[%emt 0:00:11]} 8. c3 {[%emt 0:00:15]} d6 {[%emt 0:00:05]} 9. d4 {[%emt 0:01:01]} exd4 {[%emt 0:00:45]} 10. cxd4 {[%emt 0:00:17]} Bg4 {[%emt 0:00:07]} 11. Bf4 {[%emt 0:06:09]} Bxf3 {[%emt 0:00:28]} 12. gxf3 {[%emt 0:00:25]} Na5 {[%emt 0:00:21]} 13. Bc2 {[%emt 0:00:26]} Nh5 {[%emt 0:01:26]} 14. Bg3 {[%emt 0:00:33]} Bg5 {[%emt 0:00:33]} 15. e5 {[%emt 0:07:54]} Nf4 {[%emt 0:02:50]} 16. Nc3 {[%emt 0:11:22]} Qd7 {[%emt 0:00:55]} 17. Bxf4 {[%emt 0:02:40]} Bxf4 {[%emt 0:00:06]} 18. Nd5 {[%emt 0:00:32]} Bg5 {[%emt 0:01:54]} 19. f4 {[%emt 0:02:54]} Bd8 {[%emt 0:01:10]} 20. f5 {[%emt 0:26:39]} Nc6 {[%emt 0:04:16]} 21. f6 {[%emt 0:12:24]} g6 {[%emt 0:00:39]} 22. Re3 Re8 {[%emt 0:03:11]} 23. f4 {[%emt 0:03:57]} dxe5 {[%emt 0:03:21]} 24. dxe5 {[%emt 0:00:40]} Nb8 {[%emt 0:00:09]} 25. Rd3 {[%emt 0:02:40]} Qc8 {[%emt 0:02:17]} 26. Rg3 {[%emt 0:02:37]} c6 {[%emt 0:00:32]} 27. Qh5 {[%emt 0:00:22]} cxd5 {[%emt 0:02:52]} 28. Qh6 {[%emt 0:00:23]} Qc5+ {[%emt 0:00:04]} 29. Kh1 {[%emt 0:02:05]} Qf8 {[%emt 0:00:04]} 30. Qh4 {[%emt 0:00:28]} Bb6 {[%emt 0:03:54]} 31. Rh3 {[%emt 0:01:01]} h6 {[%emt 0:00:50]} 32. Rg3 {[%emt 0:02:39]} Bf2 {[%emt 0:01:46]} 33. Rag1 {[%emt 0:09:31]} Bxg1 {[%emt 0:00:09]} 34. Qh5 {[%emt 0:00:40]} Kh8 {[%emt 0:04:57]} 35. Bxg6 {[%emt 0:00:54]} Bxh2 {[%emt 0:00:20]} 36. Kxh2 {[%emt 0:00:31]} fxg6 {[%emt 0:00:19]} 37. Rxg6 {[%emt 0:00:21]} Ra7 {[%emt 0:00:10]} 38. e6 {[%emt 0:02:22]} Rxe6 {[%emt 0:01:41]} 39. Qh4 {[%emt 0:02:26]} Rf7 {[%emt 0:00:53]} 40. Kg2 {[%emt 0:01:21]} Rexf6 {[%emt 0:00:15]} 41. f5 {[%emt 0:00:38]} Rxg6+ {[%emt 0:00:17]} 42. fxg6 {[%emt 0:00:11]} Qg7 {[%emt 0:00:27]} 43. Qg3 {[%emt 0:00:30]} Rf8 {[%emt 0:00:08]} 44. Qd6 {[%emt 0:00:27]} Nd7 {[%emt 0:00:05]} 45. Qxd5 {[%emt 0:00:43]} Qxg6+ {[%emt 0:00:10]} 46. Kh2 {[%emt 0:00:21]} Qf5 {[%emt 0:00:17]} 47. Qb3 {[%emt 0:00:34]} Qf2+ {[%emt 0:00:05]} 48. Kh1 {[%emt 0:00:25]} Qf1+ {[%emt 0:00:07]} 49. Kh2 {[%emt 0:00:09]} Rf2+ {[%emt 0:00:03]} 50. Kg3 {[%emt 0:00:13]} Rg2+ {[%emt 0:00:07]} 51. Kh4 {[%emt 0:00:24]} Qf4+ {[%emt 0:00:11]} 0-1

[Event "Hungarian Youth-ch I 2024"]
[Site "Szolnok"]
[Date "2024.04.05"]
[Round "8.14"]
[White "Sinoros-Szabo, Daniel"]
[Black "Janosi, Bence"]
[Result "1/2-1/2"]
[ECO "C10"]
[WhiteElo "1971"]
[BlackElo "1893"]
[Annotator "RC"]
[PlyCount "39"]
[EventDate "2024.03.31"]
[EventType "swiss"]
[EventCountry "HUN"]
[SourceTitle "playchess.com"]
[Source "ChessBase"]
[SourceQuality "1"]
[TimeControl "5400+30"]

1. e4 {[%emt 0:00:08]} e6 {[%emt 0:00:03]} 2. d4 {[%emt 0:00:05]} d5 {[%emt 0:00:02]} 3. Nc3 {[%emt 0:00:06]} Nc6 {[%emt 0:00:07]} 4. Nf3 {[%emt 0:00:31]} Nf6 {[%emt 0:00:07]} 5. e5 {[%emt 0:00:35]} Ne4 {[%emt 0:00:11]} 6. Bd3 {[%emt 0:00:44]} Bb4 {[%emt 0:00:46]} 7. Bd2 {[%emt 0:00:40]} Nxd2 {[%emt 0:01:58]} 8. Qxd2 {[%emt 0:00:15]} f6 {[%emt 0:04:23]} 9. exf6 {[%emt 0:08:07]} Qxf6 {[%emt 0:00:16]} 10. O-O {[%emt 0:02:20]} Bd7 {[%emt 0:04:14]} 11. a3 {[%emt 0:05:26]} Bd6 {[%emt 0:05:50]} 12. Rfe1 {[%emt 0:17:52]} O-O-O {[%emt 0:03:03]} 13. Ne2 {[%emt 0:06:57]} Rdf8 {[%emt 0:08:10]} 14. c4 {[%emt 0:03:56]} dxc4 {[%emt 0:05:49]} 15. Bxc4 {[%emt 0:00:08]} e5 {[%emt 0:02:55]} 16. d5 {[%emt 0:04:03]} e4 {[%emt 0:06:41]} 17. dxc6 {[%emt 0:09:05]} Bxc6 {[%emt 0:02:52]} 18. Nfd4 {[%emt 0:03:10]} Bxh2+ {[%emt 0:03:10]} 19. Kxh2 {[%emt 0:22:00]} Qh4+ {[%emt 0:00:04]} 20. Kg1 {[%emt 0:00:07]} 1/2-1/2

[Event "Hungarian Youth-ch I 2024"]
[Site "Szolnok"]
[Date "2024.04.05"]
[Round "8.15"]
[White "Hegedus, Bernat"]
[Black "Hangay, Oliver"]
[Result "0-1"]
[ECO "A47"]
[WhiteElo "1778"]
[BlackElo "1962"]
[Annotator "RC"]
[PlyCount "88"]
[EventDate "2024.03.31"]
[EventType "swiss"]
[EventCountry "HUN"]
[SourceTitle "playchess.com"]
[Source "ChessBase"]
[SourceQuality "1"]
[TimeControl "5400+30"]

1. Nf3 {[%emt 0:00:07]} Nf6 {[%emt 0:00:12]} 2. d4 {[%emt 0:00:08]} b6 {[%emt 0:00:16]} 3. c4 {[%emt 0:00:14]} Bb7 {[%emt 0:00:10]} 4. Nc3 {[%emt 0:00:17]} e6 {[%emt 0:00:29]} 5. Qc2 {[%emt 0:05:12]} Bb4 {[%emt 0:02:24]} 6. Bg5 {[%emt 0:01:54]} h6 {[%emt 0:01:26]} 7. Bh4 {[%emt 0:02:05]} g5 {[%emt 0:00:24]} 8. Bg3 {[%emt 0:00:12]} Ne4 {[%emt 0:01:00]} 9. Be5 {[%emt 0:04:03]} Rg8 {[%emt 0:10:26]} 10. Nd2 {[%emt 0:07:04]} Bxc3 {[%emt 0:00:36]} 11. bxc3 {[%emt 0:00:18]} f5 {[%emt 0:01:29]} 12. f3 {[%emt 0:13:50]} Nxd2 {[%emt 0:03:26]} 13. Qxd2 {[%emt 0:00:30]} d6 {[%emt 0:08:28]} 14. Bg3 {[%emt 0:00:09]} Nd7 {[%emt 0:03:29]} 15. h4 {[%emt 0:11:17]} Qf6 {[%emt 0:02:51]} 16. e3 {[%emt 0:16:29]} O-O-O {[%emt 0:05:18]} 17. d5 {[%emt 0:04:06]} Nc5 {[%emt 0:03:33]} 18. Qd4 {[%emt 0:06:13]} e5 {[%emt 0:01:24]} 19. Qd1 {[%emt 0:01:25]} Rde8 {[%emt 0:03:49]} 20. Bf2 {[%emt 0:04:44]} Qg6 {[%emt 0:11:02]} 21. g3 {[%emt 0:06:26]} f4 {[%emt 0:05:08]} 22. e4 {[%emt 0:01:37]} fxg3 {[%emt 0:02:59]} 23. Bxg3 {[%emt 0:00:16]} g4 {[%emt 0:02:46]} 24. Bd3 {[%emt 0:07:05]} gxf3 {[%emt 0:01:46]} 25. Bf2 {[%emt 0:00:15]} Ref8 {[%emt 0:05:25]} 26. Qc2 {[%emt 0:02:30]} Nxd3+ {[%emt 0:02:44]} 27. Qxd3 {[%emt 0:00:02]} Rf4 {[%emt 0:00:12]} 28. O-O-O {[%emt 0:02:34]} Qxe4 {[%emt 0:00:51]} 29. Qxe4 {[%emt 0:00:25]} Rxe4 {[%emt 0:00:05]} 30. Rhg1 {[%emt 0:00:12]} Reg4 {[%emt 0:00:37]} 31. Rxg4 {[%emt 0:00:15]} Rxg4 {[%emt 0:00:00]} 32. Kd2 {[%emt 0:00:31]} Ba6 {[%emt 0:01:58]} 33. Ke3 {[%emt 0:00:19]} Rxc4 {[%emt 0:00:37]} 34. Kxf3 {[%emt 0:00:09]} Rxc3+ {[%emt 0:00:18]} 35. Ke4 {[%emt 0:00:16]} Rc4+ {[%emt 0:00:05]} 36. Ke3 {[%emt 0:00:16]} Rg4 {[%emt 0:00:23]} 37. Kf3 {[%emt 0:00:36]} h5 {[%emt 0:00:09]} 38. Rg1 {[%emt 0:01:00]} Rxg1 {[%emt 0:00:37]} 39. Bxg1 {[%emt 0:00:02]} Bc4 {[%emt 0:00:25]} 40. Ke4 {[%emt 0:00:08]} Bxa2 {[%emt 0:00:07]} 41. Kf5 {[%emt 0:00:04]} Bxd5 {[%emt 0:00:05]} 42. Kg5 {[%emt 0:00:10]} Bf3 {[%emt 0:00:03]} 43. Be3 {[%emt 0:00:10]} a5 {[%emt 0:00:08]} 44. Bf2 {[%emt 0:00:07]} a4 {[%emt 0:00:03]} 0-1

[Event "Hungarian Youth-ch I 2024"]
[Site "Szolnok"]
[Date "2024.04.05"]
[Round "8.16"]
[White "Liu, James Jiayu"]
[Black "Papai, Mate"]
[Result "0-1"]
[ECO "B40"]
[WhiteElo "1782"]
[BlackElo "1887"]
[Annotator "NA RC"]
[PlyCount "98"]
[EventDate "2024.03.31"]
[EventType "swiss"]
[EventCountry "HUN"]
[SourceTitle "playchess.com"]
[Source "ChessBase"]
[SourceQuality "1"]
[TimeControl "5400+30"]

1. e4 {[%emt 0:00:32]} c5 {[%emt 0:00:33]} 2. Nf3 {[%emt 0:00:25]} e6 {[%emt 0:00:42]} 3. g3 {[%emt 0:00:32]} Nc6 {[%emt 0:02:34]} 4. Bg2 {[%emt 0:01:09]} d5 {[%emt 0:03:25]} 5. exd5 {[%emt 0:00:13]} exd5 {[%emt 0:00:10]} 6. d4 {[%emt 0:00:24] B40: Sicilian: 2...e6, Unusual lines.} Bg4 {[%emt 0:12:41]} 7. c3 {[%emt 0:01:45]} cxd4 {[%emt 0:04:45]} 8. cxd4 {[%emt 0:01:44]} Nf6 {[%emt 0:06:53]} 9. O-O {[%emt 0:00:32]} Be7 {[%emt 0:00:40]} 10. Be3 {[%emt 0:06:06]} O-O {[%emt 0:01:01]} 11. Nbd2 {[%emt 0:02:25]} Rc8 {[%emt 0:04:14]} 12. Rc1 {[%emt 0:05:32]} Qb6 {[%emt 0:09:00]} 13. Qb3 {[%emt 0:05:42]} Qa6 {[%emt 0:01:13]} 14. Rfe1 {[%emt 0:18:05]} Na5 {[%emt 0:03:29]} 15. Qd1 {[%emt 0:08:19]} h6 {[%emt 0:06:19]} 16. Bxh6 {[%emt 0:12:29]} gxh6 {[%emt 0:02:01]} 17. Rxe7 {[%emt 0:00:43]} Be6 {[%emt 0:04:29]} 18. Rec7 {[%emt 0:02:51]} Rxc7 {[%emt 0:01:57]} 19. Rxc7 {[%emt 0:00:19]} Nc6 {[%emt 0:00:30]} 20. Qb3 {[%emt 0:01:47]} Bc8 {[%emt 0:08:41]} 21. Qe3 {[%emt 0:04:45]} Qb6 {[%emt 0:02:54]} 22. Qf4 {[%emt 0:04:24]} Kg7 {[%emt 0:01:24]} 23. Nb3 {[%emt 0:10:34]} Nh5 {[%emt 0:02:16]} 24. Rxc6 {[%emt 0:00:35]} bxc6 {[%emt 0:00:47]} 25. Qe5+ {[%emt 0:00:46]} Nf6 {[%emt 0:00:13]} 26. h3 {[%emt 0:03:31]} Re8 $15 {[%emt 0:01:14]} 27. Qf4 {[%emt 0:02:31]} Ne4 {[%emt 0:03:55]} 28. Ne5 {[%emt 0:01:20]} f6 {[%emt 0:01:43]} 29. Ng4 {[%emt 0:00:42]} Bxg4 {[%emt 0:00:32]} 30. Qxg4+ {[%emt 0:00:05]} Kf8 {[%emt 0:03:52]} 31. Nc5 {[%emt 0:00:47]} Nxc5 {[%emt 0:00:24]} 32. dxc5 {[%emt 0:00:16]} Qxc5 {[%emt 0:00:11]} 33. Qf4 {[%emt 0:00:15]} Re1+ {[%emt 0:03:16]} 34. Kh2 {[%emt 0:00:09]} Kf7 {[%emt 0:00:53]} 35. Qxh6 {[%emt 0:00:33]} Qxf2 {[%emt 0:00:11]} 36. Qh7+ {[%emt 0:00:27]} Ke6 {[%emt 0:00:36]} 37. Qg8+ {[%emt 0:00:20]} Kd7 {[%emt 0:00:11]} 38. Qg4+ {[%emt 0:00:41]} Kc7 {[%emt 0:01:04]} 39. Qf4+ {[%emt 0:00:28]} Qxf4 {[%emt 0:00:19]} 40. gxf4 {[%emt 0:00:02]} Kd6 {[%emt 0:00:41]} 41. Kg3 {[%emt 0:00:19]} d4 {[%emt 0:00:45]} 42. Kf2 {[%emt 0:00:12]} Rb1 {[%emt 0:00:45]} 43. Be4 {[%emt 0:00:37]} Rxb2+ {[%emt 0:00:06]} 44. Ke1 {[%emt 0:00:09]} Rxa2 {[%emt 0:00:16]} 45. h4 {[%emt 0:00:13]} Rh2 {[%emt 0:00:06]} 46. Bxc6 {[%emt 0:00:19]} Kxc6 {[%emt 0:00:08]} 47. f5 {[%emt 0:00:06]} d3 {[%emt 0:00:06]} 48. Kd1 {[%emt 0:00:16]} a5 {[%emt 0:00:33]} 49. h5 {[%emt 0:01:04]} a4 0-1

[Event "Hungarian Youth-ch I 2024"]
[Site "Szolnok"]
[Date "2024.04.05"]
[Round "8.19"]
[White "Zhao, Yichen"]
[Black "Golya, David"]
[Result "0-1"]
[ECO "B72"]
[WhiteElo "1673"]
[BlackElo "1672"]
[Annotator "NA RC"]
[PlyCount "72"]
[EventDate "2024.03.31"]
[EventType "swiss"]
[EventCountry "HUN"]
[SourceTitle "playchess.com"]
[Source "ChessBase"]
[SourceQuality "1"]
[TimeControl "5400+30"]

1. e4 {[%emt 0:00:01]} c5 {[%emt 0:00:05]} 2. Nf3 {[%emt 0:00:04]} d6 {[%emt 0:00:06]} 3. d4 {[%emt 0:00:19]} cxd4 {[%emt 0:00:05]} 4. Nxd4 {[%emt 0:00:11]} Nf6 {[%emt 0:00:08]} 5. Nc3 {[%emt 0:00:04]} g6 {[%emt 0:00:05]} 6. Be3 {[%emt 0:00:13]} Bg7 {[%emt 0:00:05]} 7. Be2 {[%emt 0:00:08]} O-O {[%emt 0:00:06]} 8. O-O {[%emt 0:00:07]} Nc6 {[%emt 0:00:06]} 9. a3 {[%emt 0:00:18]} Qc7 {[%emt 0:00:58]} 10. Qd2 {[%emt 0:00:46]} Bd7 {[%emt 0:01:33]} 11. h3 {[%emt 0:00:49]} a6 {[%emt 0:00:46]} 12. Bf3 {[%emt 0:01:16]} Ne5 {[%emt 0:01:00]} 13. Rad1 {[%emt 0:19:37]} Rfe8 {[%emt 0:07:02]} 14. Rfe1 {[%emt 0:04:11]} Nc4 {[%emt 0:02:39]} 15. Qc1 {[%emt 0:02:03]} Qb6 {[%emt 0:00:14]} 16. Nb3 {[%emt 0:00:40]} Nxe3 {[%emt 0:00:07]} 17. Qxe3 {[%emt 0:00:17]} Qxe3 {[%emt 0:02:37]} 18. Rxe3 {[%emt 0:00:08]} Rab8 {[%emt 0:01:20]} 19. g4 {[%emt 0:00:59]} Bh6 {[%emt 0:06:34]} 20. Red3 {[%emt 0:00:33]} Bf4 {[%emt 0:04:08]} 21. Nd5 {[%emt 0:02:45]} Nxd5 {[%emt 0:00:13]} 22. Rxd5 {[%emt 0:00:32]} Bc6 {[%emt 0:01:20]} 23. R5d3 {[%emt 0:00:35]} Bb5 {[%emt 0:01:07]} 24. Rd5 {[%emt 0:04:12]} e6 {[%emt 0:00:39]} 25. R5d4 {[%emt 0:00:15]} Be5 {[%emt 0:00:11]} 26. R4d2 {[%emt 0:00:13]} Bxb2 {[%emt 0:02:34]} 27. Rxd6 {[%emt 0:00:26]} Bxa3 {[%emt 0:00:07]} 28. R6d4 {[%emt 0:00:15]} Rbc8 {[%emt 0:00:51]} 29. e5 {[%emt 0:04:26]} Rxc2 {[%emt 0:01:39]} 30. Bxb7 {[%emt 0:00:34]} Rc3 {[%emt 0:00:33]} 31. Nd2 {[%emt 0:01:54]} Rxh3 {[%emt 0:03:38]} 32. Ne4 {[%emt 0:01:16]} Rb8 {[%emt 0:01:45]} 33. Rd8+ {[%emt 0:00:48]} Rxd8 {[%emt 0:00:07]} 34. Rxd8+ {[%emt 0:00:08]} Kg7 {[%emt 0:00:25]} 35. g5 {[%emt 0:00:54]} Bc1 {[%emt 0:06:30]} 36. f3 {[%emt 0:08:33]} Rh5 {[%emt 0:01:44]} 0-1

[Event "Hungarian Youth-ch I 2024"]
[Site "Szolnok"]
[Date "2024.04.05"]
[Round "8.20"]
[White "Fan, Xiaotong"]
[Black "Marton-John, Almos Kiran"]
[Result "1/2-1/2"]
[ECO "C24"]
[WhiteElo "1731"]
[BlackElo "1693"]
[Annotator "NA RC"]
[PlyCount "105"]
[EventDate "2024.03.31"]
[EventType "swiss"]
[EventCountry "HUN"]
[SourceTitle "playchess.com"]
[Source "ChessBase"]
[SourceQuality "1"]
[TimeControl "5400+30"]

1. e4 {[%emt 0:00:14]} e5 {[%emt 0:00:06]} 2. Bc4 {[%emt 0:00:07]} Nf6 {[%emt 0:00:08]} 3. d3 {[%emt 0:00:04]} Bc5 {[%emt 0:00:05]} 4. Nc3 {[%emt 0:00:37]} Nc6 {[%emt 0:00:06]} 5. Be3 {[%emt 0:00:47]} d6 {[%emt 0:00:22]} 6. Bxc5 {[%emt 0:00:58]} dxc5 {[%emt 0:00:07]} 7. Nge2 {[%emt 0:00:15]} Be6 {[%emt 0:01:56]} 8. Bb3 {[%emt 0:00:18]} Qd7 {[%emt 0:00:26]} 9. Qd2 {[%emt 0:08:22]} O-O-O {[%emt 0:00:36]} 10. O-O-O {[%emt 0:03:13]} Nd4 {[%emt 0:11:06]} 11. h3 {[%emt 0:32:09]} Ne8 {[%emt 0:05:30]} 12. f4 {[%emt 0:00:27]} f6 {[%emt 0:00:31]} 13. Qe3 {[%emt 0:05:18]} Nd6 {[%emt 0:00:39]} 14. fxe5 {[%emt 0:03:00]} fxe5 {[%emt 0:00:07]} 15. Rhf1 {[%emt 0:01:06]} c4 {[%emt 0:06:04]} 16. dxc4 {[%emt 0:07:14]} Nxc4 17. Qg3 {[%emt 0:03:50]} Qe7 {[%emt 0:09:50]} 18. Rfe1 {[%emt 0:06:27]} Rhe8 {[%emt 0:14:12]} 19. Qf2 {[%emt 0:06:32]} Qg5+ {[%emt 0:02:07]} 20. Kb1 {[%emt 0:00:35]} Nd2+ {[%emt 0:01:36]} 21. Ka1 {[%emt 0:00:12]} Bxb3 {[%emt 0:00:12]} 22. Nxd4 {[%emt 0:00:56]} exd4 {[%emt 0:00:46]} 23. Rxd2 {[%emt 0:00:41]} dxc3 {[%emt 0:02:14]} 24. Rxd8+ {[%emt 0:00:39]} Rxd8 {[%emt 0:00:04]} 25. axb3 {[%emt 0:00:08]} cxb2+ {[%emt 0:02:52]} 26. Kxb2 {[%emt 0:00:09]} Qe5+ {[%emt 0:00:21]} 27. Kb1 {[%emt 0:00:44]} b6 {[%emt 0:00:17]} 28. Qf5+ {[%emt 0:00:26]} Qxf5 {[%emt 0:00:09]} 29. exf5 {[%emt 0:00:06]} Rd2 {[%emt 0:00:15]} 30. g4 {[%emt 0:00:30]} Kd7 {[%emt 0:00:06]} 31. Kb2 {[%emt 0:00:20]} a5 {[%emt 0:02:23]} 32. Kc3 {[%emt 0:01:36]} Rd6 {[%emt 0:01:15]} 33. g5 {[%emt 0:03:07]} Rd5 {[%emt 0:01:33]} 34. f6 {[%emt 0:01:35]} Rxg5 {[%emt 0:04:23]} 35. Re7+ {[%emt 0:00:11]} Kd6 {[%emt 0:00:05]} 36. Rxg7 {[%emt 0:00:08]} Rf5 {[%emt 0:01:58]} 37. Rxh7 {[%emt 0:00:39]} Rxf6 {[%emt 0:00:05]} 38. h4 {[%emt 0:00:06]} Rf3+ {[%emt 0:00:14]} 39. Kb2 {[%emt 0:00:08]} Rh3 {[%emt 0:00:15]} 40. h5 {[%emt 0:00:04]} Kc6 {[%emt 0:02:22]} 41. h6 {[%emt 0:00:22]} Kb5 {[%emt 0:00:07]} 42. Rxc7 {[%emt 0:01:06]} Rxh6 {[%emt 0:00:08]} 43. Rc4 {[%emt 0:00:07]} Rh5 {[%emt 0:00:16]} 44. Rd4 {[%emt 0:00:18]} Rc5 {[%emt 0:00:13]} 45. Rh4 {[%emt 0:00:11]} Ka6 {[%emt 0:00:29]} 46. Rd4 {[%emt 0:00:30]} Kb7 {[%emt 0:00:08]} 47. c3 {[%emt 0:01:04]} Kc6 {[%emt 0:00:04]} 48. b4 {[%emt 0:00:40]} axb4 {[%emt 0:00:05]} 49. Rxb4 {[%emt 0:00:24]} b5 {[%emt 0:00:43]} 50. Kb3 {[%emt 0:00:11]} Kb6 {[%emt 0:00:17]} 51. c4 {[%emt 0:00:12]} Rxc4 {[%emt 0:00:30]} 52. Rxc4 {[%emt 0:00:05]} bxc4+ {[%emt 0:00:04]} 53. Kxc4 1/2-1/2

[Event "Hungarian Youth-ch I 2024"]
[Site "Szolnok"]
[Date "2024.04.06"]
[Round "9.1"]
[White "Gathi, Donat"]
[Black "Szikszai, Bertalan"]
[Result "0-1"]
[ECO "B40"]
[WhiteElo "2192"]
[BlackElo "2312"]
[Annotator "RC"]
[PlyCount "128"]
[EventDate "2024.03.31"]
[EventType "swiss"]
[EventCountry "HUN"]
[SourceTitle "playchess.com"]
[Source "ChessBase"]
[SourceQuality "1"]
[TimeControl "5400+30"]

1. e4 {[%emt 0:00:06]} c5 {[%emt 0:03:23]} 2. Nf3 {[%emt 0:00:08]} e6 {[%emt 0:00:42]} 3. d4 {[%emt 0:00:06]} cxd4 {[%emt 0:00:05]} 4. Nxd4 {[%emt 0:00:06]} Nf6 {[%emt 0:00:13]} 5. Nc3 {[%emt 0:00:11]} Nc6 {[%emt 0:00:05]} 6. Ndb5 {[%emt 0:00:35]} Bc5 {[%emt 0:01:31]} 7. Bf4 {[%emt 0:00:59]} O-O {[%emt 0:00:35]} 8. Bc7 {[%emt 0:00:08]} Qe7 {[%emt 0:00:07]} 9. Bd6 {[%emt 0:00:06]} Bxd6 {[%emt 0:00:04]} 10. Qxd6 {[%emt 0:00:08]} Qd8 {[%emt 0:00:08]} 11. O-O-O {[%emt 0:00:16]} a6 {[%emt 0:00:43]} 12. Nd4 {[%emt 0:01:43]} Ne7 {[%emt 0:00:14]} 13. h4 {[%emt 0:12:58]} Ne8 {[%emt 0:02:13]} 14. Qg3 {[%emt 0:00:34]} b5 {[%emt 0:02:21]} 15. Bd3 {[%emt 0:08:48]} b4 {[%emt 0:04:26]} 16. Nce2 {[%emt 0:00:49]} d6 {[%emt 0:10:03]} 17. f4 {[%emt 0:16:48]} Bb7 {[%emt 0:09:06]} 18. h5 {[%emt 0:16:20]} h6 {[%emt 0:05:20]} 19. Kb1 {[%emt 0:01:47]} Qc7 {[%emt 0:18:07]} 20. Rh4 {[%emt 0:11:52]} Qc5 {[%emt 0:08:07]} 21. e5 {[%emt 0:11:11]} Bd5 {[%emt 0:05:54]} 22. Rg4 {[%emt 0:04:03]} Kh8 {[%emt 0:00:31]} 23. f5 {[%emt 0:04:14]} dxe5 {[%emt 0:06:00]} 24. f6 {[%emt 0:03:47]} Nxf6 {[%emt 0:03:58]} 25. Rxg7 {[%emt 0:00:07]} Rg8 {[%emt 0:03:19]} 26. Rxg8+ {[%emt 0:00:35]} Nexg8 {[%emt 0:01:23]} 27. Nb3 {[%emt 0:01:32]} Bxb3 {[%emt 0:00:28]} 28. axb3 {[%emt 0:00:02]} Rd8 {[%emt 0:01:26]} 29. Rf1 {[%emt 0:01:03]} e4 {[%emt 0:01:45]} 30. Bc4 {[%emt 0:00:02]} a5 {[%emt 0:00:27]} 31. Qh4 {[%emt 0:01:51]} Qg5 {[%emt 0:00:17]} 32. Qxg5 {[%emt 0:00:44]} hxg5 {[%emt 0:00:04]} 33. Kc1 {[%emt 0:00:35]} Kg7 {[%emt 0:00:23]} 34. Ng3 {[%emt 0:00:11]} Rc8 {[%emt 0:07:06]} 35. Re1 {[%emt 0:00:23]} Rc5 {[%emt 0:00:08]} 36. Kd2 {[%emt 0:01:26]} g4 {[%emt 0:01:01]} 37. Ke3 {[%emt 0:01:16]} Nxh5 {[%emt 0:00:32]} 38. Nxe4 {[%emt 0:00:10]} Rf5 {[%emt 0:00:43]} 39. Bd3 {[%emt 0:01:27]} Re5 {[%emt 0:01:47]} 40. Kd4 {[%emt 0:00:37]} Rd5+ {[%emt 0:00:06]} 41. Kc4 {[%emt 0:00:32]} Ngf6 {[%emt 0:01:02]} 42. Nc5 {[%emt 0:00:21]} Ne8 {[%emt 0:01:32]} 43. Kb5 {[%emt 0:00:47]} Nf4 {[%emt 0:01:51]} 44. Bc4 {[%emt 0:00:29]} Rg5 {[%emt 0:01:12]} 45. g3 {[%emt 0:00:25]} Nh5 {[%emt 0:00:23]} 46. Re3 {[%emt 0:00:36]} Nd6+ {[%emt 0:00:13]} 47. Kb6 {[%emt 0:00:11]} Nf5 {[%emt 0:00:10]} 48. Re1 {[%emt 0:00:37]} Nfxg3 {[%emt 0:00:44]} 49. c3 {[%emt 0:00:35]} Nf4 {[%emt 0:00:22]} 50. Rg1 {[%emt 0:00:39]} Nge2 {[%emt 0:00:57]} 51. Bxe2 {[%emt 0:00:25]} Nxe2 {[%emt 0:00:08]} 52. Rg2 {[%emt 0:00:38]} Nf4 {[%emt 0:00:19]} 53. Rg1 {[%emt 0:00:05]} bxc3 {[%emt 0:00:14]} 54. bxc3 {[%emt 0:00:05]} Ne2 {[%emt 0:00:13]} 55. Ne4 {[%emt 0:01:10]} Nxg1 {[%emt 0:01:16]} 56. Nxg5 {[%emt 0:00:01]} Nf3 {[%emt 0:00:13]} 57. Ne4 {[%emt 0:00:18]} f5 {[%emt 0:00:07]} 58. Ng3 {[%emt 0:00:20]} Nd2 {[%emt 0:00:56]} 59. Kxa5 {[%emt 0:00:19]} Ne4 {[%emt 0:01:37]} 60. Ne2 {[%emt 0:00:48]} e5 {[%emt 0:00:29]} 61. b4 {[%emt 0:00:22]} f4 {[%emt 0:00:08]} 62. Nc1 {[%emt 0:00:42]} g3 {[%emt 0:00:42]} 63. b5 {[%emt 0:00:06]} f3 {[%emt 0:00:29]} 64. b6 {[%emt 0:00:09]} Nd6 {[%emt 0:00:09]} 0-1